lending/lending_fUSD_20260411
["ID","MTS","AMOUNT","RATE_DAILY","PERIOD"]
[420260912,1775868633854,-151.0,0.00012093,2]
[420260913,1775868633868,-500.0,0.00012093,2]
[420260914,1775868633898,-500.0,0.00012093,2]
[420260915,1775868633917,-500.0,0.00012093,2]
[420260916,1775868633930,-500.0,0.00012093,2]
[420260917,1775868633939,-500.0,0.00012093,2]
[420260918,1775868633953,-500.0,0.00012093,2]
[420260919,1775868633966,-500.0,0.00012093,2]
[420260920,1775868633979,-500.0,0.00012093,2]
[420260921,1775868633988,-500.0,0.00012093,2]
[420260922,1775868634005,-500.0,0.00012093,2]
[420260923,1775868634026,-500.0,0.00012093,2]
[420260924,1775868634035,-524.95027006,0.00012093,2]
[420260925,1775868634044,-500.0,0.00012093,2]
[420260926,1775868634059,-500.0,0.00012093,2]
[420260927,1775868634070,-500.0,0.00012093,2]
[420260928,1775868634079,-500.0,0.00012093,2]
[420260929,1775868634088,-500.0,0.00012093,2]
[420260930,1775868634104,-500.0,0.00012093,2]
[420260931,1775868634116,-151.0,0.00012093,2]
[420260932,1775868634128,-470.69802626,0.00012093,2]
[420260933,1775868634142,-150.0,0.000121,2]
[420260934,1775868634154,-300.0,0.000121,2]
[420260935,1775868634167,-600.0,0.000121,2]
[420260936,1775868634177,-195.0,0.000121,2]
[420260937,1775868634194,-250.0,0.000121,2]
[420260938,1775868634222,-339.24114641,0.000121,2]
[420260939,1775868634234,-195.0,0.000121,2]
[420260940,1775868634257,-250.0,0.000121,2]
[420260941,1775868634283,-250.0,0.000121,2]
[420260942,1775868634293,-1680.0,0.00012101,2]
[420260943,1775868634303,-1852.42,0.00012135,2]
[420260944,1775868634321,-166.66,0.00012267,2]
[420260945,1775868634333,-531.58090884,0.00012317,2]
[420260946,1775868634342,-255.0,0.00012442,2]
[420260947,1775868634356,-200.0,0.00012641,2]
[420260948,1775868634376,-578.20924308,0.00012843,2]
[420260949,1775868634400,-174.61919142,0.00012843,2]
[420260950,1775868634410,-1235.18214925,0.00012843,2]
[420260951,1775868634422,-174.61919141,0.00012843,2]
[420260952,1775868634439,-771.01748645,0.00012843,2]
[420260953,1775868634449,-200.0,0.00012843,2]
[420260954,1775868634463,-151.0,0.00012843,2]
[420260955,1775868634477,-279.9045709,0.00012843,2]
[420260956,1775868634494,-151.0,0.00012898,2]
[420260957,1775868634509,-151.0,0.00012953,2]
[420260958,1775868634521,-250.0,0.00013,2]
[420260959,1775868634559,-151.0,0.00013008,2]
[420260960,1775868634568,-151.0,0.00013063,2]
[420260961,1775868634577,-507.0,0.000131,2]
[420260962,1775868634616,-151.0,0.00013118,2]
[420260963,1775868634628,-200.0,0.00013189,2]
[420260964,1775868634657,-500.0,0.00013299,2]
[420260965,1775868634666,-500.0,0.00013299,2]
[420260966,1775868634676,-500.0,0.00013299,2]
[420260967,1775868634695,-644.57907854,0.00013299,2]
[420260968,1775868634711,-150.0,0.00013299,2]
[420260969,1775868634720,-150.0,0.00013299,2]
[420260970,1775868634729,-150.0,0.00013299,2]
[420260971,1775868634742,-150.0,0.00013299,2]
[420260972,1775868634751,-150.0,0.00013299,2]
[420260973,1775868634760,-150.0,0.00013299,2]
[420260974,1775868634771,-150.0,0.00013299,2]
[420260975,1775868634782,-150.0,0.00013299,2]
[420260976,1775868634800,-150.0,0.00013299,2]
[420260977,1775868634809,-586.4,0.00013299,2]
[420260978,1775868634819,-173.6938,0.000133,2]
[420260979,1775868634832,-1280.88388878,0.00013391,2]
[420260980,1775868634842,-181.08010149,0.00013391,2]
[420260981,1775868634853,-3240.0,0.00013425,2]
[420260982,1775868634863,-11154.4566,0.00013473,2]
[420260983,1775868634872,-11170.65353744,0.00013498,2]
[420260984,1775868634888,-153.35263468,0.00013498,2]
[420260985,1775868634898,-13469.8260314,0.00013498,2]
[420260986,1775868634908,-3361.18945431,0.00013498,2]
[420260987,1775868634925,-7285.00944244,0.00013498,2]
[420260988,1775868634934,-576.43577263,0.00013498,2]
[420260989,1775868634944,-2500.0,0.00013498,2]
[420260990,1775868634953,-5000.0,0.00013498,2]
[420260991,1775868634969,-2000.0,0.00013561,2]
[420260992,1775868634978,-500.0,0.00013573,2]
[420260993,1775868634987,-500.0,0.00013573,2]
[420260994,1775868634996,-341.21474486,0.00013573,2]
[420260995,1775868635008,-500.0,0.00013573,2]
[420260996,1775868635017,-500.0,0.00013573,2]
[420260997,1775868635027,-166.22328725,0.00013573,2]
[420260998,1775868635036,-150.83840523,0.00013573,2]
[420260999,1775868635045,-500.0,0.00013573,2]
[420261000,1775868635056,-500.0,0.00013573,2]
[420261001,1775868635065,-500.0,0.00013573,2]
[420261002,1775868635075,-586.4,0.00013573,2]
[420261003,1775868635084,-159.95139106,0.00013588,2]
[420261004,1775868635096,-281.93962292,0.00013589,2]
[420261005,1775868635105,-150.0,0.00013589,2]
[420261006,1775868635122,-2094.03,0.00013597,2]
[420261007,1775868635133,-169.018,0.00013597,2]
[420261008,1775868635142,-500.0,0.00013597,2]
[420261009,1775868635160,-500.0,0.00013597,2]
[420261010,1775868635172,-500.0,0.00013597,2]
[420261011,1775868635186,-323.72665189,0.00013597,2]
[420261012,1775868635195,-500.0,0.00013597,2]
[420261013,1775868635205,-313.83752855,0.00013597,2]
[420261014,1775868635219,-500.0,0.00013597,2]
[420261015,1775868635237,-398.52946733,0.00013597,2]
[420261016,1775868635247,-500.0,0.00013597,2]
[420261017,1775868635274,-500.0,0.00013597,2]
[420261018,1775868635284,-500.0,0.00013597,2]
[420261019,1775868635296,-500.0,0.00013597,2]
[420261020,1775868635317,-500.0,0.00013597,2]
[420261021,1775868635328,-500.0,0.00013597,2]
[420261022,1775868635345,-500.0,0.00013597,2]
[420261023,1775868635372,-500.0,0.00013597,2]
[420261024,1775868635381,-500.0,0.00013597,2]
[420261025,1775868635406,-500.0,0.00013597,2]
[420261026,1775868635419,-500.0,0.00013597,2]
[420261027,1775868635436,-314.49026258,0.00013597,2]
[420261028,1775868635478,-500.0,0.00013597,2]
[420261029,1775868635492,-500.0,0.00013597,2]
[420261030,1775868635574,-344.89649073,0.00013597,2]
[420261031,1775868635590,-1902.0,0.00013598,5]
[420261032,1775868635610,-1523.0,0.00013598,5]
[420261033,1775868635621,-75420.06676449,0.00013598,2]
[420261034,1775868635635,-23098.01695911,0.00013598,2]
[420261036,1775868638097,-404.84010919,0.00013498,2]
[420261037,1775868638110,-1142.23858236,0.00013598,2]
[420261038,1775868638133,-676.49998999,0.00013598,2]
[420261039,1775868638144,-460.98089089,0.00013598,2]
[420261040,1775868638383,-776784.0179167,0.00013598,2]
[420261159,1775868640142,-3250.0,0.00013598,2]
[420261177,1775868640602,-1739.2125644,0.00013598,2]
[420261179,1775868640621,-497.813004,0.00013598,2]
[420261340,1775868642823,-4540.0,0.00013598,2]
[420261456,1775868644430,-2600.0,0.00013598,2]
[420261529,1775868645759,-2929.2925983,0.00013598,2]
[420261531,1775868645774,-450.87171231,0.00013598,2]
[420261544,1775868645976,-1692.77842981,0.00013598,2]
[420261863,1775869074766,180.0,0.000125,120]
[420261865,1775869381237,300.0,0.00010699,2]
[420261866,1775869381285,300.0,0.00010699,2]
[420261867,1775869445635,1200.0,0.00010699,2]
[420261868,1775869501063,300.0,0.00010699,2]
[420261869,1775869501095,1200.0,0.00010699,2]
[420261874,1775869801377,1200.0,0.00010699,2]
[420261875,1775869802420,221.730825,0.00010644,2]
[420261890,1775869832007,-404.30213,0.000107,2]
[420261891,1775869832029,-2014.57682749,0.000107,2]
[420261892,1775869832044,-1424.51542341,0.000107,2]
[420261893,1775869832092,-6156.6156191,0.000107,2]
[420261894,1775869832103,-5000.0,0.00010745,2]
[420261895,1775869832115,-250.0,0.00010789,2]
[420261896,1775869832134,-1465.05,0.00010859,2]
[420261897,1775869832153,-5000.0,0.00010878,2]
[420261898,1775869832163,-200.0,0.00010901,2]
[420261899,1775869832176,-250.0,0.0001099,2]
[420261900,1775869832194,-150.0,0.00011041,2]
[420261901,1775869832219,-1151.24,0.00011156,2]
[420261902,1775869832228,-2211.91134651,0.00011159,2]
[420261903,1775869832245,-195.0,0.00011159,2]
[420261904,1775869832261,-221.73082498,0.00011166,2]
[420261905,1775869832271,-1001.32,0.00011507,2]
[420261907,1775869832298,-221.73082498,0.00011687,2]
[420261908,1775869832309,-159.95139106,0.00011754,2]
[420261910,1775869832319,-35772.81427233,0.00011764,2]
[420261927,1775869839122,-150.0,0.00010959,2]
[420261929,1775869839149,-500.0,0.00011763,2]
[420261931,1775869839167,-241.42754351,0.00011763,2]
[420261933,1775869839184,-219.68626998,0.00011763,2]
[420261935,1775869839194,-500.0,0.00011763,2]
[420261937,1775869839210,-626.60865632,0.00011763,2]
[420261939,1775869839234,-500.0,0.00011763,2]
[420261941,1775869839243,-500.0,0.00011763,2]
[420261943,1775869839253,-500.0,0.00011763,2]
[420261945,1775869839271,-178.97062713,0.00011763,2]
[420261947,1775869839294,-223968.0660034,0.00011764,2]
[420261949,1775869839307,-1358.36788851,0.00011764,2]
[420261953,1775869839341,-254.18043806,0.00011764,2]
[420261957,1775869839386,-629.949,0.00011764,2]
[420261959,1775869839397,-506.45799778,0.00011764,2]
[420261964,1775869839441,-381.113601,0.00011764,2]
[420261968,1775869839487,-464.09299881,0.00011764,2]
[420262088,1775869845907,-2268.54012215,0.00011764,2]
[420262089,1775869845923,-712.40607935,0.00011764,2]
[420262090,1775869845935,-2994.60849894,0.00011764,2]
[420262091,1775869845947,-1458.670872,0.00011764,2]
[420262092,1775869846089,-313.11540083,0.00011763,2]
[420262093,1775869846142,-186.88459917,0.00011763,2]
[420262094,1775869846162,-500.0,0.00011763,2]
[420262095,1775869846181,-55.61540083,0.00011763,2]
[420262096,1775869846199,-422.39931889,0.00011763,2]
[420262097,1775869846215,-15039.7582441,0.00011764,2]
[420262138,1775869847046,-643.80513405,0.00011764,2]
[420262140,1775869847062,-2435.31727346,0.00011764,2]
[420262149,1775869847219,-1028.73033201,0.00011764,2]
[420262153,1775869847260,-371.095,0.00011764,2]
[420262158,1775869847362,-13934.93028782,0.00011764,2]
[420262159,1775870388812,381.94,2e-05,2]
[420262160,1775870400984,-287.0,0.0001107,2]
[420262161,1775870401009,-82.0,0.0001107,2]
[420262162,1775870419855,2500.4,0.000107,2]
[420262163,1775870445248,-600.0,0.0001107,2]
[420262164,1775870445274,-600.0,0.0001107,2]
[420262165,1775870445299,-600.0,0.0001107,2]
[420262166,1775870445326,-113.0,0.0001107,2]
[420262167,1775870445363,-614.79417446,0.0001107,2]
[420262168,1775870445400,-250.0,0.0001107,2]
[420262169,1775870445435,-195.0,0.0001107,2]
[420262170,1775870445478,-194.6134,0.0001107,2]
[420262171,1775870482512,182.92,0.00011077,2]
[420262172,1775870491982,-500.0,0.00011164,2]
[420262173,1775870492070,-195.0,0.00011166,2]
[420262174,1775870492131,-293.54777718,0.00011167,2]
[420262175,1775870492178,-1200.0,0.00011528,2]
[420262176,1775870492262,-300.0,0.00011528,2]
[420262177,1775870492308,-4161.12464836,0.00011564,2]
[420262178,1775870552919,150.0,0.00013,120]
[420262200,1775871035147,-153.35263466,0.000108,2]
[420262201,1775871035170,-170.03631461,0.000108,2]
[420262202,1775871035181,-250.0,0.00010848,2]
[420262203,1775871035197,-500.0,0.00010873,2]
[420262204,1775871035215,-12.01105071,0.00010873,2]
[420262205,1775871035234,-487.98894929,0.00010873,2]
[420262206,1775871035253,-163.31105072,0.00010873,2]
[420262207,1775871035405,-336.68894928,0.00010873,2]
[420262208,1775871035416,-160.45873457,0.00010873,2]
[420262209,1775871035426,-214.33762241,0.00010897,2]
[420262210,1775871035451,-39.70237759,0.00010897,2]
[420262211,1775871035462,-1200.0,0.00010898,2]
[420262212,1775871035488,-41.77602142,0.00010898,2]
[420262213,1775871035683,-258.22397858,0.00010898,2]
[420262214,1775871035693,-300.0,0.00010898,2]
[420262215,1775871035710,-150.0,0.00010898,2]
[420262216,1775871035720,-500.0,0.00010899,2]
[420262217,1775871035730,-383.01477846,0.00010899,2]
[420262218,1775871035744,-500.0,0.00010899,2]
[420262219,1775871035763,-500.0,0.00010899,2]
[420262220,1775871035774,-199.7449746,0.00010899,2]
[420262221,1775871035796,-63.48103799,0.00010899,2]
[420262222,1775871035812,-310.64926706,0.00010899,2]
[420262223,1775871035830,-500.0,0.00010899,2]
[420262224,1775871035849,-494.35073294,0.00010899,2]
[420262225,1775871035883,-69.59649239,0.00010899,2]
[420262226,1775871035902,-500.0,0.00010899,2]
[420262227,1775871035932,-500.0,0.00010899,2]
[420262228,1775871035950,-500.0,0.00010899,2]
[420262229,1775871035979,-501.13856525,0.00010899,2]
[420262230,1775871036010,-500.0,0.00010899,2]
[420262231,1775871036026,-500.0,0.00010899,2]
[420262232,1775871036069,-437.10716485,0.00010899,2]
[420262233,1775871036104,-500.0,0.00010899,2]
[420262234,1775871036119,-195.05699266,0.00010899,2]
[420262235,1775871036142,-428.03522177,0.00010899,2]
[420262236,1775871036156,-609.09277529,0.00010899,2]
[420262237,1775871036169,-500.0,0.00010899,2]
[420262238,1775871036195,-531.59319255,0.00010899,2]
[420262239,1775871036206,-500.0,0.00010899,2]
[420262240,1775871036229,-416.89482115,0.00010899,2]
[420262241,1775871036260,-500.0,0.00010899,2]
[420262242,1775871036273,-500.0,0.00010899,2]
[420262243,1775871036303,-500.0,0.00010899,2]
[420262244,1775871036330,-500.0,0.00010899,2]
[420262245,1775871036344,-500.0,0.00010899,2]
[420262246,1775871036371,-500.0,0.00010899,2]
[420262247,1775871036390,-600.0,0.00010899,2]
[420262248,1775871036405,-500.0,0.00010899,2]
[420262249,1775871036416,-270.0,0.00010899,2]
[420262250,1775871036430,-500.0,0.00010899,2]
[420262251,1775871036443,-525.58231631,0.00010899,2]
[420262252,1775871036454,-500.0,0.00010899,2]
[420262253,1775871036469,-500.0,0.00010899,2]
[420262254,1775871036479,-500.0,0.00010899,2]
[420262255,1775871036489,-500.0,0.00010899,2]
[420262256,1775871036502,-500.0,0.00010899,2]
[420262257,1775871036518,-500.0,0.00010899,2]
[420262258,1775871036528,-500.0,0.00010899,2]
[420262259,1775871036539,-500.0,0.00010899,2]
[420262260,1775871036553,-500.0,0.00010899,2]
[420262261,1775871036563,-500.0,0.00010899,2]
[420262262,1775871036573,-500.0,0.00010899,2]
[420262263,1775871036585,-500.0,0.00010899,2]
[420262264,1775871036596,-280.62025737,0.00010899,2]
[420262265,1775871036607,-111543.02495099,0.000109,2]
[420262266,1775871036626,-31455.85439447,0.000109,2]
[420262267,1775871036640,-38498.27027686,0.000109,2]
[420262268,1775871036654,-306.52762519,0.000109,2]
[420262279,1775871038629,-175.5749384,0.00010848,30]
[420262280,1775871038649,-156.37600401,0.0001089,2]
[420262281,1775871038659,-263.36240761,0.00010897,30]
[420262282,1775871038668,-187.77931784,0.000109,2]
[420262283,1775871038689,-262227.04039496,0.000109,2]
[420262284,1775871038827,-3658.16629207,0.000109,2]
[420262286,1775871038995,-332184.28331071,0.000109,2]
[420262288,1775871039016,-500.0,0.000109,2]
[420262290,1775871039046,-1274.43353591,0.000109,2]
[420262292,1775871039058,-549.24599264,0.000109,2]
[420262294,1775871039079,-1036.33790763,0.000109,2]
[420262297,1775871039103,-811.96417703,0.000109,2]
[420262299,1775871039116,-370.00000001,0.000109,2]
[420262301,1775871039137,-1125.0,0.000109,2]
[420262326,1775871040690,-1414.53115383,0.000109,2]
[420262329,1775871040716,-1650.08094065,0.000109,2]
[420262333,1775871040912,-413.69258642,0.000109,2]
[420262334,1775871040924,-337.05962658,0.000109,2]
[420262335,1775871041367,-1391485.8773,0.000108,2]
[420262336,1775871041386,-710456.70751621,0.000109,2]
[420262337,1775871041414,-504.38130106,0.000109,2]
[420262338,1775871041424,-80721.94505445,0.00011,2]
[420262339,1775871041435,-167.94,0.00011044,2]
[420262340,1775871041450,-500.0,0.00011421,2]
[420262341,1775871041472,-33035.6402,0.00011564,2]
[420262342,1775871041482,-2500.0,0.00011564,2]
[420262343,1775871041503,-152.0,0.00011613,7]
[420262344,1775871041513,-504.38130103,0.00011613,2]
[420262345,1775871041541,-152.0,0.00011616,7]
[420262346,1775871041551,-152.0,0.00011616,7]
[420262347,1775871041566,-152.0,0.0001162,7]
[420262349,1775871041580,-12759.03,0.0001162,2]
[420262350,1775871041589,-152.0,0.00011627,7]
[420262351,1775871041601,-152.0,0.00011627,7]
[420262352,1775871041611,-460.87,0.00011663,2]
[420262353,1775871041626,-1000.0,0.00011664,2]
[420262354,1775871041636,-410.46228858,0.00011673,2]
[420262355,1775871041656,-500.0,0.00011673,2]
[420262356,1775871041666,-167.80099761,0.00011673,2]
[420262357,1775871041682,-500.0,0.00011673,2]
[420262358,1775871041692,-166.08637647,0.00011691,2]
[420262359,1775871041703,-250.53900261,0.000117,2]
[420262360,1775871041716,-258.49597956,0.000117,2]
[420262361,1775871041734,-238.60911282,0.000117,2]
[420262362,1775871041745,-183.89457397,0.000117,2]
[420262363,1775871041770,-207.27690712,0.000117,2]
[420262365,1775871041785,-299.39966299,0.000117,2]
[420262367,1775871041795,-319.54540785,0.000117,2]
[420262368,1775871041824,-333.24138179,0.000117,2]
[420262369,1775871041833,-372.0,0.00011742,2]
[420262370,1775871041865,-87920.9580968,0.0001175,2]
[420262371,1775871041886,-337.0,0.00011753,2]
[420262372,1775871041915,-151.0,0.00011757,2]
[420262373,1775871041931,-151.0,0.00011757,2]
[420262374,1775871041957,-151.0,0.00011757,2]
[420262375,1775871041967,-151.0,0.00011757,2]
[420262376,1775871041994,-151.0,0.00011757,2]
[420262377,1775871042007,-151.0,0.00011757,2]
[420262378,1775871042031,-500.0,0.00011757,2]
[420262379,1775871042051,-151.0,0.00011757,2]
[420262380,1775871042075,-500.0,0.00011757,2]
[420262381,1775871042089,-151.0,0.00011757,2]
[420262382,1775871042124,-500.0,0.00011757,2]
[420262383,1775871042134,-151.0,0.00011757,2]
[420262384,1775871042153,-500.0,0.00011757,2]
[420262385,1775871042164,-500.0,0.00011757,2]
[420262386,1775871042173,-151.0,0.00011757,2]
[420262387,1775871042187,-500.0,0.00011757,2]
[420262388,1775871042201,-151.0,0.00011757,2]
[420262389,1775871042215,-500.0,0.00011757,2]
[420262390,1775871042238,-151.0,0.00011757,2]
[420262391,1775871042249,-500.0,0.00011757,2]
[420262392,1775871042261,-151.0,0.00011757,2]
[420262393,1775871042273,-500.0,0.00011757,2]
[420262394,1775871042286,-151.0,0.00011757,2]
[420262395,1775871042295,-500.0,0.00011757,2]
[420262396,1775871042311,-151.0,0.00011757,2]
[420262397,1775871042319,-544.71552557,0.00011757,2]
[420262398,1775871042332,-200.0,0.00011757,2]
[420262399,1775871042344,-500.0,0.00011757,2]
[420262400,1775871042356,-500.0,0.00011757,2]
[420262401,1775871042365,-500.0,0.00011757,2]
[420262402,1775871042393,-500.0,0.00011757,2]
[420262403,1775871042403,-500.0,0.00011757,2]
[420262404,1775871042413,-500.0,0.00011757,2]
[420262405,1775871042450,-500.0,0.00011757,2]
[420262406,1775871042459,-500.0,0.00011757,2]
[420262407,1775871042483,-1199.20597015,0.00011757,2]
[420262408,1775871042492,-1309.1028729,0.00011763,2]
[420262409,1775871042501,-2057.58181954,0.00011763,2]
[420262410,1775871042522,-4310.90487752,0.00011763,2]
[420262411,1775871042533,-300.0,0.00011763,2]
[420262412,1775871042542,-1142.0,0.00011764,2]
[420262413,1775871042570,-547.0,0.00011764,3]
[420262414,1775871042579,-166.0,0.00011764,3]
[420262415,1775871042589,-351.08419038,0.00011835,2]
[420262416,1775871042613,-500.0,0.00011845,2]
[420262417,1775871042624,-150.81482166,0.00011845,2]
[420262418,1775871042633,-154.88,0.00011848,2]
[420262419,1775871042656,-195.0,0.0001188,2]
[420262420,1775871042668,-195.0,0.0001188,2]
[420262421,1775871042678,-300.28285874,0.0001188,2]
[420262422,1775871042695,-250.0,0.0001188,2]
[420262423,1775871042717,-195.0,0.0001188,2]
[420262424,1775871042727,-195.0,0.0001188,2]
[420262425,1775871042738,-460.87,0.00011937,2]
[420262426,1775871042756,-255.0,0.00011944,2]
[420262427,1775871042766,-420.0,0.00011977,2]
[420262428,1775871042775,-252.70001494,0.00011986,2]
[420262429,1775871042793,-5000.0,0.00011986,2]
[420262430,1775871042802,-195.0,0.00011986,2]
[420262431,1775871042811,-600.0,0.00011986,2]
[420262432,1775871042824,-250.0,0.00011986,2]
[420262433,1775871042835,-5000.0,0.00011986,2]
[420262434,1775871042844,-1680.0,0.00011988,2]
[420262435,1775871042854,-150.0,0.00012,2]
[420262436,1775871042865,-299.99,0.00012087,2]
[420262437,1775871042879,-6341.31,0.00012087,2]
[420262438,1775871042888,-829.99,0.00012087,2]
[420262439,1775871042898,-150.99,0.00012087,2]
[420262440,1775871042907,-460.87,0.00012211,2]
[420262441,1775871042927,-1000.0,0.00012221,2]
[420262442,1775871042937,-282.62984801,0.00012298,2]
[420262443,1775871042946,-200.0,0.00012305,2]
[420262444,1775871042962,-637.80128355,0.00012305,2]
[420262446,1775871042976,-504.38130103,0.00012328,2]
[420262448,1775871042985,-5259.25,0.00012425,2]
[420262449,1775871042994,-460.87,0.00012485,2]
[420262450,1775871043004,-265.25969602,0.00012518,2]
[420262451,1775871043019,-151.0,0.00012528,2]
[420262452,1775871043028,-151.0,0.00012528,2]
[420262453,1775871043038,-978.0,0.00012672,5]
[420262454,1775871043048,-150.0,0.00012704,2]
[420262455,1775871043063,-1188.42,0.00012715,2]
[420262456,1775871043073,-460.87,0.00012759,2]
[420262457,1775871043082,-1500.0,0.00012768,2]
[420262458,1775871043091,-265.25969602,0.00012792,2]
[420262459,1775871043108,-200.0,0.00012853,2]
[420262460,1775871043118,-167.94,0.00012866,2]
[420262461,1775871043128,-250.0,0.00013,2]
[420262462,1775871043141,-783.0,0.00013027,5]
[420262463,1775871043166,-869.0,0.00013027,5]
[420262466,1775871043176,-504.38130103,0.00013042,2]
[420262468,1775871043194,-433.0,0.00013088,2]
[420262470,1775871043206,-506.0,0.000131,2]
[420262471,1775871043216,-221.04974668,0.0001312,2]
[420262472,1775871043236,-2146.0,0.00013151,2]
[420262473,1775871043247,-587.0,0.00013163,2]
[420262474,1775871043258,-2351.0,0.00013187,2]
[420262475,1775871043275,-173.6862,0.000132,2]
[420262476,1775871043307,-19617.8174605,0.00013249,2]
[420262477,1775871043322,-168.0,0.00013271,2]
[420262478,1775871043348,-898.0,0.00013291,2]
[420262479,1775871043357,-152.0,0.00013301,3]
[420262480,1775871043371,-200.720006,0.00013312,2]
[420262481,1775871043408,-217.491108,0.00013312,2]
[420262483,1775871043418,-192.50475,0.00013316,2]
[420262485,1775871043428,-1151.24,0.00013319,2]
[420262488,1775871043441,-898.0,0.00013336,2]
[420262489,1775871043453,-578.20924308,0.00013344,2]
[420262490,1775871043463,-500.0,0.00013344,2]
[420262491,1775871043486,-174.61919141,0.00013344,2]
[420262492,1775871043495,-743.50770149,0.00013344,2]
[420262493,1775871043520,-151.0,0.00013344,2]
[420262494,1775871043530,-599.60298507,0.00013344,2]
[420262495,1775871043542,-290.26104003,0.00013344,2]
[420262496,1775871043561,-1600.0,0.00013346,2]
[420262497,1775871043570,-859.0,0.00013347,2]
[420262498,1775871043579,-153.35263466,0.0001335,2]
[420262499,1775871043603,-859.0,0.00013363,2]
[420262500,1775871043612,-151.0,0.00013372,2]
[420262501,1775871043622,-500.0,0.00013399,2]
[420262502,1775871043634,-151.0,0.00013399,2]
[420262503,1775871043654,-319.37146297,0.00013401,2]
[420262504,1775871043664,-3240.0,0.00013425,2]
[420262505,1775871043673,-168.0,0.00013427,2]
[420262506,1775871043689,-151.0,0.00013454,2]
[420262507,1775871043698,-152.0,0.00013496,4]
[420262508,1775871043708,-151.0,0.00013509,2]
[420262509,1775871043717,-168.0,0.00013513,2]
[420262510,1775871043734,-168.0,0.00013559,2]
[420262511,1775871043752,-151.0,0.00013564,2]
[420262512,1775871043764,-4377.3267517,0.00013584,2]
[420262513,1775871043774,-547.0,0.00013595,3]
[420262514,1775871043785,-353.01138374,0.00013597,2]
[420262515,1775871043799,-215.0153182,0.00013598,2]
[420262516,1775871043811,-175.33709238,0.00013598,2]
[420262517,1775871043824,-3002.002,0.00013598,2]
[420262518,1775871043838,-170.113,0.00013598,2]
[420262519,1775871043850,-1012.0,0.000136,2]
[420262520,1775871043863,-151.0,0.00013619,2]
[420262521,1775871043873,-168.0,0.00013621,2]
[420262522,1775871043887,-168.0,0.00013627,2]
[420262523,1775871043908,-898.0,0.00013656,2]
[420262525,1775871043918,-151.0,0.00013674,2]
[420262526,1775871043927,-152.0,0.0001369,5]
[420262528,1775871043943,-530.51,0.00013698,2]
[420262530,1775871043956,-530.51,0.00013698,2]
[420262532,1775871043965,-530.51,0.00013698,2]
[420262533,1775871043977,-530.51,0.00013698,2]
[420262535,1775871043997,-530.51,0.00013698,2]
[420262537,1775871044006,-530.51,0.00013698,2]
[420262539,1775871044019,-530.51,0.00013698,2]
[420262540,1775871044030,-530.51,0.00013698,2]
[420262542,1775871044044,-530.51,0.00013698,2]
[420262544,1775871044053,-530.51,0.00013698,2]
[420262546,1775871044066,-530.51,0.00013698,2]
[420262548,1775871044087,-530.51,0.00013698,2]
[420262549,1775871044097,-500.0,0.00013698,2]
[420262550,1775871044106,-500.0,0.00013698,2]
[420262551,1775871044117,-500.0,0.00013698,2]
[420262552,1775871044134,-500.0,0.00013698,2]
[420262553,1775871044143,-500.0,0.00013698,2]
[420262554,1775871044152,-500.0,0.00013698,2]
[420262555,1775871044170,-500.0,0.00013698,2]
[420262556,1775871044185,-170.56400404,0.00013698,2]